Cogmind - Beta 16.1 @@@ ROGUE MODE // 2026.03.27 @ 23:10:11 // AFD2020/Player2 Player: Michael Result: Core destroyed Performance ------------- Evolutions (0) 0 Regions Visited (4) 800 Robots Destroyed (17) 85 Value Destroyed (254) 254 Prototype IDs (23) 460 Alien Tech Used (0) 0 Bonus (356) 356 TOTAL SCORE: 1955 Bonus ------- Follower Combat Kills 167 Aligned with FarCom 300 Friendly Fire -111 Cogmind --------- Core Integrity 0/250 Matter 227/300 Energy 100/100 System Corruption 0% Temperature Cool (0) Movement Walking (120) Location -9/Mines Parts ------- > --- POWER (1) -------- (None) > --- PROPULSION (2) --- Aluminum Leg Aluminum Leg > --- UTILITY (2) ------ Medium Storage Unit > --- WEAPON (2) ------- (None) > --- INVENTORY (10) --- Aluminum Leg Beam Cannon Guided Plasma Cannon Assault Rifle Light Assault Rifle Heavy Assault Rifle Heavy Assault Rifle Peak State ------------ > --- POWER ------------ Ion Engine > --- PROPULSION ------- Aluminum Leg Aluminum Leg > --- UTILITY ---------- Large Storage Unit Propulsion Shielding > --- WEAPON ----------- Beam Cannon Heavy Assault Rifle > --- INVENTORY -------- Aluminum Leg Aluminum Leg 0b10 Alert Chip Trap Reconfigurator Guided Plasma Cannon Assault Rifle Light Assault Rifle Light Assault Rifle Heavy Assault Rifle Grenade Launcher [Rating: 11] Favorites ----------- Power Ion Engine Engine Ion Engine Propulsion Aluminum Leg Leg Aluminum Leg Utility Propulsion Shielding Storage Small Storage Unit Protection Propulsion Shielding Weapon Beam Cannon Energy Cannon Beam Cannon Ballistic Gun Heavy Assault Rifle Launcher Grenade Launcher Build | -11 -10 -10 -10 -9 ------- Run | Yrd Mat Min Exi Min Slots Evolved . | . . . . . Power . | . . . . . Propulsion . | . . . . . Utility . | . . . . . Weapon . | . . . . . Parts Attached 19 | 6 8 2 2 1 Power 2 | 1 . 1 . . Engine 2 | 1 . 1 . . Core . | . . . . . Reactor . | . . . . . Propulsion 6 | 2 3 1 . . Treads . | . . . . . Leg 6 | 2 3 1 . . Wheel . | . . . . . Hover . | . . . . . Flight . | . . . . . Utility 4 | 1 1 . 2 . Device . | . . . . . Storage 3 | 1 . . 2 . Processor . | . . . . . Hackware . | . . . . . Protection 1 | . 1 . . . Artifact . | . . . . . Weapon 7 | 2 4 . . 1 Energy Gun . | . . . . . Energy Cannon 1 | . 1 . . . Ballistic Gun 5 | 2 2 . . 1 Ballistic Cannon . | . . . . . Launcher 1 | . 1 . . . Special Weapon . | . . . . . Impact Weapon . | . . . . . Slashing Weapon . | . . . . . Piercing Weapon . | . . . . . Special Melee Weapon . | . . . . . Unidentified Prototypes . | . . . . . Parts Lost 5 | . . . . 5 Power 1 | . . . . 1 Propulsion 1 | . . . . 1 Utility 1 | . . . . 1 Weapon 2 | . . . . 2 Highest Loss Streak 5 | . . . . 5 To Critical Strikes . | . . . . . Average Backups 6 | 2 5 7 8 8 Power . | . . . . . Propulsion 2 | 1 2 2 2 2 Utility . | . . . 1 . Weapon 4 | . 3 5 5 6 Tool/Special . | . . . . . Unused Backups 10 | . 4 1 2 3 Power . | . . . . . Propulsion 3 | . 3 . . . Utility 2 | . . . 2 . Weapon 5 | . 1 1 . 3 Tool/Special . | . . . . . Average Slot Usage (%) 99 | . 97 100 100 99 Engine 14 | . 14 14 14 14 Leg 28 | . 28 28 28 28 Storage 14 | . 14 14 14 14 Protection 13 | . 11 14 14 13 Energy Cannon 11 | . 8 14 14 12 Ballistic Gun 15 | . 18 14 14 14 Peak Build Rating 11 | 6 8 8 11 9 Average Rating 8 | 4 7 8 9 8 On Entrance 6 | . 6 8 8 9 Avg Prop Armor Cover (%) . | . . . . . Naked Turns . | . . . . . Heaviest Build 32 | 13 17 17 32 22 Greatest Support 20 | 20 20 20 20 20 Greatest Overweight (x) 2 | 2 . . 1 1 Average Overweight (x) . | . . . . . Largest Inventory Capacity 15 | 8 8 8 15 10 Average Capacity 9 | 6 8 8 13 10 Most Carried 10 | 4 8 8 10 8 Average Carried 6 | 2 5 7 8 8 Final Capacity 10 | 8 8 8 10 10 Final Carried 8 | 4 8 7 8 7 Class Distribution -------------------- 100% | Mutant Dominant Class ---------------- Mutant | -10/Materials Mutant | -10/Mines Mutant | -10/Exiles Mutant | -9/Mines Resources | -11 -10 -10 -10 -9 ----------- Run | Yrd Mat Min Exi Min Matter Collected 509 | 217 179 113 . . Remotely . | . . . . . Salvage Created 428 | . 175 163 . 90 Parts 35 | . 15 20 . . Haulers Intercepted . | . . . . . Recyclers Shooed . | . . . . . Parts Field Recycled . | . . . . . Retrieved Matter . | . . . . . Parts Self-Destructed . | . . . . . Prevented . | . . . . . Parts Restored . | . . . . . Kills | -11 -10 -10 -10 -9 ------- Run | Yrd Mat Min Exi Min Combat Hostiles Destroyed 17 | . 6 8 . 3 Guns 8 | . 5 3 . . Cannons 4 | . . 4 . . AOE 5 | . 1 1 . 3 Classes Destroyed 5 | . 3 1 . 1 Tunneler 1 | . . 1 . . Recycler 2 | . 1 . . 1 Swarmer 11 | . 5 6 . . Grunt 3 | . 1 2 . . Assembled 3 | . . . . 3 Best Kill Streak 6 | . 3 6 . 4 Combat Bots Only 6 | . 2 6 . 3 Max Kills in Single Turn 2 | . 2 2 . 2 Gunslinging . | . . . . . Exploded 2 | . 1 1 . 2 Melee . | . . . . . Uniques/NPCs Destroyed . | . . . . . Combat | -11 -10 -10 -10 -9 -------- Run | Yrd Mat Min Exi Min Hostile Shots Fired 87 | . 33 20 . 34 Missed 24 | . 10 2 . 12 Hits 63 | . 23 18 . 22 Projectile 63 | . 23 18 . 22 AOE 4 | . . . . 4 Critical Strikes 2 | . . . . 2 Damage Taken 903 | . 357 168 . 378 Core 195 | . 76 41 . 78 Absorbed by Shields . | . . . . . Redirected to Shielding 53 | . 39 6 . 8 Core Remaining (%) 100 | 100 . . . . Volleys Fired 34 | . 20 11 . 3 Largest 2 | . 2 2 . 1 Hottest 83 | . 80 83 . 30 Shots Fired 61 | . 37 21 . 3 Gun 41 | . 30 10 . 1 Cannon 14 | . 4 10 . . Launcher 6 | . 3 1 . 2 Special . | . . . . . Kinetic 41 | . 30 10 . 1 Thermal 14 | . 4 10 . . Explosive 6 | . 3 1 . 2 Electromagnetic . | . . . . . Robot Hit Streak 5 | . 5 3 . 4 Robot Miss Streak 5 | . 5 3 . . Penetration Max . | . . . . . Secondary Targets 1 | . 1 . . . Max Gunslinging Chain 1 | . 1 . . . Shots Hit Robots 30 | . 18 9 . 3 Core Hits 26 | . 12 9 . 5 Critical Kills . | . . . . . Critical Parts Destroyed . | . . . . . Critical Strikes . | . . . . . Melee Attacks . | . . . . . Impact . | . . . . . Slashing . | . . . . . Piercing . | . . . . . Sneak Attacks . | . . . . . Combat Hostiles . | . . . . . Follow-up Attacks . | . . . . . Damage Inflicted 844 | . 347 249 . 248 Guns 235 | . 177 49 . 9 Cannons 87 | . . 87 . . Explosions 522 | . 170 113 . 239 Melee . | . . . . . Ramming . | . . . . . Kinetic 235 | . 177 49 . 9 Thermal 87 | . . 87 . . Explosive 522 | . 170 113 . 239 Electromagnetic . | . . . . . Impact . | . . . . . Slashing . | . . . . . Piercing . | . . . . . Highest Corruption . | . . . . . Average Corruption . | . . . . . Corruption Purged . | . . . . . Corruption Blocked . | . . . . . Overload Shots . | . . . . . Overflow Damage . | . . . . . Projectiles . | . . . . . Explosions . | . . . . . Melee . | . . . . . Knockbacks . | . . . . . Impact . | . . . . . Kinetic . | . . . . . Secondary . | . . . . . Self-Inflicted Damage 59 | . 59 . . . Shots 2 | . 2 . . . Rammed . | . . . . . Targets Rammed . | . . . . . Kicked . | . . . . . Crushed . | . . . . . Highest Temperature 189 | . 92 189 . . Average Temperature 59 | . 25 85 . . Received Heat Transfer 156 | . 120 36 . . Siege Activations . | . . . . . Martial Activations . | . . . . . Shielding Activations . | . . . . . Robots Disrupted . | . . . . . Combat Hostiles . | . . . . . Robots Corrupted . | . . . . . Combat Hostiles . | . . . . . Parts Fried . | . . . . . Impact Corruptions . | . . . . . Robots Melted . | . . . . . Combat Hostiles . | . . . . . Parts Melted . | . . . . . Heat Transferred 185 | . . 185 . . Parts Sabotaged . | . . . . . Parts Stolen . | . . . . . Parts Stripped . | . . . . . Power Chain Reactions . | . . . . . Alert | -11 -10 -10 -10 -9 ------- Run | Yrd Mat Min Exi Min Maximum Alert Level 1 | . 1 1 . . Low Security (%) 67 | 100 57 56 . 100 Level 1 32 | . 42 43 . . Level 2 . | . . . . . Level 3 . | . . . . . Level 4 . | . . . . . Level 5 . | . . . . . High Security . | . . . . . Max Security . | . . . . . Peak Influence 277 | . 277 276 . 13 Initial 70 | . . 70 . . Average 130 | . 168 175 . . Influence Increases 726 | . 447 266 . 13 Destroy 0b10 Robot/C 420 | . 260 160 . . Destroy 0b10 Robot/NC 25 | . 15 5 . 5 Destroy Leader 82 | . 52 30 . . Allied During Kill 126 | . 78 47 . 1 Successful Hack 7 | . 7 . . . Disable Machine 15 | . 15 . . . Destroy Structure 36 | . 20 9 . 7 Lose Combat Pursuer 15 | . . 15 . . Influence Decreases 726 | . 266 221 226 13 Entered New Map 337 | . . 111 226 . Time Decay 376 | . 266 110 . . Lost Part 13 | . . . . 13 Squads Dispatched 3 | . 2 . . 1 Investigation . | . . . . . Extermination . | . . . . . Reinforcement 3 | . 2 . . 1 Assault . | . . . . . Garrison . | . . . . . Intercept . | . . . . . Searches Triggered . | . . . . . Construction Impeded 1 | . . . . 1 Haulers Reinforced . | . . . . . Active Scanning Responses . | . . . . . Cargo Convoy Interrupts . | . . . . . Stealth | -11 -10 -10 -10 -9 --------- Run | Yrd Mat Min Exi Min Distress Signals 1 | . 1 . . . Communications Jammed . | . . . . . Distress Signals . | . . . . . Times Spotted 44 | . 17 9 . 18 Peak Tracking Total 17 | . 5 6 . 17 Tactical Retreats 1 | . . 1 . . Traps | -11 -10 -10 -10 -9 ------- Run | Yrd Mat Min Exi Min Traps Triggered 1 | . 1 . . . Indirectly . | . . . . . Trap Hack Attempts . | . . . . . Triggered . | . . . . . Disarmed . | . . . . . Reprogrammed . | . . . . . Reused . | . . . . . Traps Extracted . | . . . . . Installed . | . . . . . Triggered . | . . . . . Machines | -11 -10 -10 -10 -9 ---------- Run | Yrd Mat Min Exi Min Machines Disabled 1 | . 1 . . . Max in Single Turn 1 | . 1 . . . Machines Repaired . | . . . . . Machines Dismantled . | . . . . . Machines Sabotaged . | . . . . . Overloaded Fab Kills . | . . . . . Hacking | -11 -10 -10 -10 -9 --------- Run | Yrd Mat Min Exi Min Machines Accessed 8 | . 5 . 2 1 Terminals 4 | . 4 . . . Fabricators . | . . . . . Repair Stations . | . . . . . Recycling Units 1 | . 1 . . . Scanalyzers . | . . . . . Garrison Access . | . . . . . Total Hacks 16 | . 13 . 2 1 Successful 5 | . 2 . 2 1 Failed 11 | . 11 . . . Catastrophic . | . . . . . Database Lockouts . | . . . . . Manual 1 | . . . 1 . Terminals 10 | . 10 . . . Fabricators . | . . . . . Repair Stations . | . . . . . Recycling Units 3 | . 3 . . . Scanalyzers . | . . . . . Garrison Access . | . . . . . Terminal Hacks 5 | . 2 . 2 1 Record 1 | . . . 1 . Open Door 1 | . . . . 1 Branch Access Points 1 | . 1 . . . Hauler Manifests 1 | . 1 . . . Proto ID Catalog 1 | . . . 1 . Fabricator Hacks . | . . . . . Repair Station Hacks . | . . . . . Recycling Unit Hacks . | . . . . . Scanalyzer . | . . . . . Garrison Access Hacks . | . . . . . Unauthorized Hacks . | . . . . . Terminals . | . . . . . Fabricators . | . . . . . Repair Stations . | . . . . . Recycling Units . | . . . . . Scanalyzers . | . . . . . Garrison Access . | . . . . . Data Cores Recovered . | . . . . . Used . | . . . . . Hacking Detections 5 | . 5 . . . Full Trace Events . | . . . . . Feedback Events . | . . . . . Feedback Blocked . | . . . . . Robot Schematics Acquired . | . . . . . Robots Built . | . . . . . Authchips . | . . . . . Time . | . . . . . Total Robot Build Rating . | . . . . . Part Schematics Acquired . | . . . . . Parts Built . | . . . . . Authchips . | . . . . . Time . | . . . . . Total Part Build Rating . | . . . . . Part Studies Acquired . | . . . . . Parts Repaired . | . . . . . Time . | . . . . . Parts Recycled . | . . . . . Recycled Matter . | . . . . . Retrieved Matter . | . . . . . Retrieved Components . | . . . . . Parts Scanalyzed . | . . . . . Part Schematics Acquired . | . . . . . Parts Damaged . | . . . . . Bothacking | -11 -10 -10 -10 -9 ------------ Run | Yrd Mat Min Exi Min Used RIF Installer . | . . . . . Robots Hacked . | . . . . . Non-combat . | . . . . . Combat . | . . . . . Robot Hacks Applied . | . . . . . Relay Couplers Released . | . . . . . Fabnet Peak Effective % . | . . . . . Robots Rewired . | . . . . . Allies Hacked . | . . . . . Hacks Repelled . | . . . . . Allies | -11 -10 -10 -10 -9 -------- Run | Yrd Mat Min Exi Min Total Allies 1 | . 1 . . . Largest Group 1 | . 1 1 1 1 Highest-Rated Group 59 | . 59 59 59 59 Highest-Rated Ally 59 | . 59 59 59 59 Total Orders . | . . . . . Ally Attacks 27 | . 21 . . 6 Total Damage 349 | . 314 . . 35 Kills 9 | . 9 . . . Allies Corrupted . | . . . . . Allies Melted . | . . . . . Intel | -11 -10 -10 -10 -9 ------- Run | Yrd Mat Min Exi Min Active Infowar (turns) . | . . . . . Robot Analysis Total . | . . . . . Derelict Logs Recovered 2 | . . . . 2 Drone Launches . | . . . . . Drone Recoveries . | . . . . . Exploration | -11 -10 -10 -10 -9 ------------- Run | Yrd Mat Min Exi Min Turns Passed 1544 | 61 603 226 457 197 Spaces Moved 980 | 41 426 149 262 102 Core 8 | 8 . . . . Treads . | . . . . . Legs 972 | 33 426 149 262 102 Wheels . | . . . . . Hover . | . . . . . Flight . | . . . . . Fastest Speed 50 | 50 120 120 120 120 Average Speed 140 | 118 120 120 170 183 Slowest Speed 190 | 150 120 120 190 190 Overloaded Moves . | . . . . . Propulsion Burnouts . | . . . . . Robots Hopped . | . . . . . Potential Cave-ins . | . . . . . Cave-ins Triggered . | . . . . . Exploration Rate (%) 40 | 3 69 29 64 35 Regions Visited 4 Branch Regions 3 Pre-discovered Areas 1 | . . . 1 . Known Exits Taken 1 | . 1 . . . Unknown Exits Taken 3 | 1 . 1 1 . Scrap Searched . | . . . . . Spaces Dug . | . . . . . Terrain Destroyed 36 | . 20 9 . 7 Melee . | . . . . . Projectile . | . . . . . AOE 36 | . 20 9 . 7 Terrain Rammed . | . . . . . Walls Destroyed . | . . . . . Machines Disabled . | . . . . . Actions | -11 -10 -10 -10 -9 --------- Run | Yrd Mat Min Exi Min Total 1090 | 50 484 175 273 108 Wait 24 | . 15 9 . . Move 976 | 40 425 148 261 102 Hop . | . . . . . Pick Up 14 | 4 5 . 5 . Fast Attach 8 | 6 2 . . . Attach 1 | . . . . 1 Detach 1 | . 1 . . . Swap 17 | . 9 4 2 2 Drop 15 | . 7 3 5 . Fire 34 | . 20 11 . 3 Melee . | . . . . . Ram . | . . . . . Kick . | . . . . . Crush . | . . . . . Escape Stasis . | . . . . . Rewire . | . . . . . Trap . | . . . . . Miscellaneous . | . . . . . Route ------- -11/Scrapyard -10/Materials (discovered 2 exits: [*Mat] / *Min) -10/Mines (discovered 2 exits: [*Mat] / *Exi) -10/Exiles -9/Mines (discovered 1 exit: [*Mat]) History --------- Turn | Location | Event 16 | -11/Scrapyard | Discovered new exit (range 15) 62 | -11/Scrapyard | Entered Materials 309 | -10/Materials | Build established: Mutant 400 | -10/Materials | Discovered new exit (range 7) 404 | -10/Materials | Identified exit to Mines 665 | -10/Materials | Entered Mines 673 | -10/Mines | Core integrity fell below 50% 750 | -10/Mines | Discovered new exit (range 4) 875 | -10/Mines | Deemed a non-threat by the Exiles lab entrance 875 | -10/Mines | Discovered new exit (range 5) 891 | -10/Mines | Entered Exiles 920 | -10/Exiles | Met 8R-AWN 939 | -10/Exiles | Met EX-HEX 1037 | -10/Exiles | Met EX-BIN 1060 | -10/Exiles | Aligned with FarCom system 1062 | -10/Exiles | Given EX-Vault access code 1105 | -10/Exiles | Opened EX-Vault 1111 | -10/Exiles | Found Prototype Device 1118 | -10/Exiles | Found Prototype Processor 1122 | -10/Exiles | Found Prototype Energy Cannon 1127 | -10/Exiles | Identified 0b10 Alert Chip 1127 | -10/Exiles | Identified Trap Reconfigurator 1127 | -10/Exiles | Identified Gui. Plasma Cannon 1169 | -10/Exiles | Warned to stay clear of 0b10 Research branches 1220 | -10/Exiles | Met EX-DEC 1228 | -10/Exiles | Learned location of Zion (-6) 1326 | -10/Exiles | Discovered new exit (range 11) 1348 | -10/Exiles | Left Exiles lab with Gui. Plasma Cannon 1348 | -10/Exiles | Entered Mines 1348 | -9/Mines | Discovered new exit (range 7) 1369 | -9/Mines | Learned Materials stockpile data 1371 | -9/Mines | Met a Derelict bent on vengeance 1378 | -9/Mines | Found the Drone Emporium 1522 | -9/Mines | Assembled infested the area 1531 | -9/Mines | Learned Materials emergency access door positions 1541 | -9/Mines | Core integrity fell below 20% 1545 | -9/Mines | Core destroyed Last Messages --------------- 01539_ as-18594 destroyed. 01541_ as-91718 destroyed. 01541_ R-06 Scavenger destroyed. 01541_ as-49894 destroyed. 01543_ as-66666 destroyed. 01543_ as-78535 destroyed. 01543_ as-69592 destroyed. 01543_ as-28200 destroyed. 01543_ as-92249 destroyed. 01543_ ALERT: Construction progress impeded, dispatching reinforcements to local area. 01543_ Grenade Launcher destroyed. 01543_ Aluminum Leg destroyed. 01543_ U-05 Engineer destroyed. 01545_ R-06 Scavenger collects Structural Scanner. 01545_ K-01 Serf collects debris. 01545_ Lgt. Assault Rifle destroyed. 01545_ Ion Engine destroyed. [Achievement: First Step to Greatness] Map ----- +----------------------------------------------------+ | ?????????????????????????????????????????????????? | | ?????????????????????????????????????????????????? | | ?????????????????????????????????????????????????? | | ?????????????????????????????????????????????????? | | ?????????????????????????????????????????????????? | | ???##????????????????????????????????????????????? | | ?## ????????????????????????????????????????????? | | ?# ????????????????????????????????????????????? | | ?? ?????????????????????????? ????????????????? | | ?? ?????????????????????????# ???????????????? | | ?? ???????????????????????## ??????????????? | | ?? #???????????????????#### ???????????????? | | ??? ##?????????????????## ???????????????? | | ??? #????????????????## ???????????????? | | ??? #?????####???????? k ????????????????? | | ???# #????## ##???????? #????????????????? | | ???# #????# ##??????? ##???????????????? | | ???# #????# ########? ##??????????????? | | ???# #???## #?? dd ##?????????????? | | ???# ##### """ #?# #?????????????? | | ???# """ ### #?# $ #?????????????? | | ???# ##### """ ##?# ### #?????????????? | | ???# #???## ##??#r ## ## #??? | | #### #????### ##???# # #??? | | ## #??????####????#!%= % a #??? | | #??????????????# = @ a a a % #??? | | #????????# @ a ??? | | ####??????# ### ##### ???? | | #????????# #?## ####??????????? | | ##???????# ????# #?????????????? | | #????????# #????? #????????????? | | ##????????## ?????? #????????????? | | #??????????## """" ???????##????????????? | | #??????????## """" ????????????????????? | | #???????????# """" ????????????????????? | | #???????????##???? ???????????????????? | | ##????????????????######## ??????????????????? | | ##?????????????????????????# ??????????????????? | | ????????????????????????????# ???????????????????? | | ?????????????????????????????????????????????????? | | ?????????????????????????????????????????????????? | | ?????????????????????????????????????????????????? | | ?????????????????????????????????????????????????? | | ?????????????????????????????????????????????????? | | ?????????????????????????????????????????????????? | | ?????????????????????????????????????????????????? | | ?????????????????????????????????????????????????? | | ?????????????????????????????????????????????????? | | ?????????????????????????????????????????????????? | | ?????????????????????????????????????????????????? | +----------------------------------------------------+ Best States ------------- Heat Dissipation 25 Energy Generation 10 Energy Capacity 250 Matter Stores 300 Matter Capacity 300 Sight Range 16 Terrain Scan Density 10 Propulsion Shielding 33 Evasion (%) 55 Item Schematics ----------------- None Robot Schematics ------------------ None Fabricated ------------ Nothing Repaired ---------- Nothing Studied --------- None Alien Tech Used ----------------- None Achievements -------------- First Step to Greatness Ghost 'Em Challenges ------------ None Player 2 | -11 -10 -10 -10 -9 ---------- Run | Yrd Mat Min Exi Min Slots Evolved . | . . . . . Power . | . . . . . Propulsion . | . . . . . Utility . | . . . . . Weapon . | . . . . . Parts Attached 14 | . 12 2 . . Parts Lost . | . . . . . Damage Taken 181 | . 134 . . 47 Core 61 | . 41 . . 20 Player 2/Cogmind (%) 23 | . 35 . . 20 Absorbed by Shields . | . . . . . Damage Inflicted 349 | . 314 . . 35 Player 2/Cogmind (%) 29 | . 47 . . 12 Combat Hostiles Destroyed 7 | . 7 . . . Player 2/Cogmind (%) 29 | . 53 . . . Game ------ Seed ShieldHardlightPulseblaster Manual? 0 Play Time 00:15:21 Cumulative 0.2 hours Start 2026.03.27 @ 22:55:11 End 2026.03.27 @ 23:10:11 Sessions 1 Manual Loads 0 Difficulty Rogue Special Mode AFD2020/Player2 Game No. 4 Rogue 4 Adventurer 0 Explorer 0 Win Type - Total 0 Types 0/0/0/0/0/0/0/0/0/0 Lore% 10 Gallery% 5 Achievement% 11 Wizard Run 0 Options --------- Layout 2 ASCII 0 Keyboard 1 Movement Vi Keybinds 0 Fullscreen 1 Font 24/Terminus Map View 25x22 Zoom Use 98% Tactical HUD 1 Map Filters NONE Filters SHIFT_HUE(270) Steam 0 RUN: fc2f9e0b-f747-4b3a-8680-59eac5acdaf3